[Event "German Bundesliga 2023-24"]
[Site "Germany"]
[Date "2024.02.04"]
[Round "8.10"]
[White "Bjerre, Jonas Buhl"]
[Black "Nguyen, Thai Dai Van"]
[Result "1/2-1/2"]
[ECO "C48"]
[WhiteElo "2637"]
[BlackElo "2632"]
[Annotator "ChessBase"]
[PlyCount "80"]
[EventDate "2023.10.20"]
[EventType "team-tourn"]
[EventCountry "GER"]
[SourceTitle "playchess.com"]
[Source "ChessBase"]
[SourceQuality "1"]
[TimeControl "40/6000+30:3000+30"]

1. e4 {[%emt 0:00:04]} e5 {[%emt 0:00:35]} 2. Nf3 {[%emt 0:00:07]} Nc6 {[%emt 0:00:11]} 3. Bb5 {[%emt 0:00:06]} Nf6 {[%emt 0:00:21]} 4. d3 {[%emt 0:00:23]} Bc5 {[%emt 0:00:17]} 5. Nc3 {[%emt 0:00:27]} d6 {[%emt 0:05:54]} 6. Na4 {[%emt 0:00:46]} Bb6 {[%emt 0:00:07]} 7. c3 {[%emt 0:02:47]} h6 {[%emt 0:06:07]} 8. h3 {[%emt 0:03:02]} O-O {[%emt 0:03:24]} 9. O-O {[%emt 0:02:33]} Ne7 {[%emt 0:10:57]} 10. Nxb6 {[%emt 0:00:24]} axb6 {[%emt 0:00:06]} 11. Ba4 {[%emt 0:01:28]} Ng6 {[%emt 0:01:30]} 12. Bc2 {[%emt 0:03:03]} Re8 {[%emt 0:04:00]} 13. Re1 {[%emt 0:02:13]} b5 {[%emt 0:04:29]} 14. d4 {[%emt 0:01:21]} Bd7 {[%emt 0:00:09]} 15. Nh2 {[%emt 0:05:12]} c6 {[%emt 0:16:56]} 16. Nf1 {[%emt 0:05:33]} Qc7 {[%emt 0:00:37]} 17. Ng3 {[%emt 0:06:17]} Rad8 {[%emt 0:05:38]} 18. Be3 {[%emt 0:05:52]} d5 {[%emt 0:03:43]} 19. exd5 {[%emt 0:05:11]} Nxd5 {[%emt 0:01:31]} 20. Qf3 {[%emt 0:04:43]} Nxe3 {[%emt 0:04:22]} 21. fxe3 {[%emt 0:02:33]} exd4 {[%emt 0:05:39]} 22. exd4 {[%emt 0:02:01]} Qf4 {[%emt 0:02:34]} 23. Qd3 {[%emt 0:05:40]} Be6 {[%emt 0:05:41]} 24. Re4 {[%emt 0:11:11]} Bc4 {[%emt 0:00:50]} 25. Rxf4 {[%emt 0:02:42]} Bxd3 {[%emt 0:02:22]} 26. Rf2 {[%emt 0:00:15]} Bxc2 {[%emt 0:00:05]} 27. Rxc2 {[%emt 0:00:02]} b4 {[%emt 0:01:24]} 28. cxb4 {[%emt 0:02:46]} Rxd4 {[%emt 0:01:12]} 29. a3 {[%emt 0:00:45]} Nf4 {[%emt 0:02:58]} 30. Rf1 {[%emt 0:02:58]} Re5 {[%emt 0:01:29]} 31. Rff2 {[%emt 0:02:18]} h5 {[%emt 0:06:42]} 32. Rfd2 {[%emt 0:03:59]} Rxd2 {[%emt 0:01:40]} 33. Rxd2 {[%emt 0:00:02]} h4 {[%emt 0:04:42]} 34. Nf1 {[%emt 0:00:36]} Rg5 {[%emt 0:01:24]} 35. Kh2 {[%emt 0:01:41]} Re5 {[%emt 0:01:04]} 36. Kg1 {[%emt 0:00:27]} Rg5 {[%emt 0:03:16]} 37. Kh2 {[%emt 0:00:05]} Kf8 {[%emt 0:01:36]} 38. Ne3 {[%emt 0:02:52]} Re5 {[%emt 0:00:14]} 39. Nc4 {[%emt 0:02:10]} Re6 {[%emt 0:02:17]} 40. Nd6 {[%emt 0:03:00]} b5 {[%emt 0:00:28]} 1/2-1/2

[Event "German Bundesliga 2023-24"]
[Site "Germany"]
[Date "2024.02.04"]
[Round "8.10"]
[White "Huschenbeth, Niclas"]
[Black "Mamedyarov, Shakhriyar"]
[Result "0-1"]
[ECO "C64"]
[WhiteElo "2605"]
[BlackElo "2734"]
[Annotator "TA"]
[PlyCount "76"]
[EventDate "2023.10.20"]
[EventType "team-tourn"]
[EventCountry "GER"]
[SourceTitle "playchess.com"]
[Source "ChessBase"]
[SourceQuality "1"]
[TimeControl "40/6000+30:3000+30"]

{[%evp 10,76,73,42,37,38,48,26,48,29,29,28,39,38,27,30,37,37,35,8,12,0,0,-4,0,-8,0,0,0,-13,-6,-15,-14,-16,0,0,0,0,0,0,0,0,0,0,0,0,0,0,0,-8,0,-10,0,-3,0,0,-7,-38,-21,-122,-131,-271,-251,-341,-321,-319,-319,-421,-408]} 1. e4 {[%emt 0:00:05]} e5 {[%emt 0:00:04]} 2. Nf3 {[%emt 0:00:09]} Nc6 {[%emt 0:00:07]} 3. Bb5 {[%emt 0:00:05]} a6 {[%emt 0:00:08]} 4. Ba4 {[%emt 0:00:07]} Bc5 {[%emt 0:00:15]} 5. O-O {[%emt 0:08:30]} Nge7 {[%emt 0:00:30]} 6. c3 {[%emt 0:12:06]} (6. Nxe5 {keeps more tension.} Nxe5 7. d4 Nf3+ 8. Qxf3 Bxd4 9. Rd1) 6... Ng6 {[%emt 0:00:42]} 7. d4 {[%emt 0:00:07]} Ba7 {[%emt 0:00:07]} 8. Re1 {[%emt 0:10:59]} (8. Bg5 $5 f6 9. Be3 $14) 8... O-O {[%emt 0:01:53] White has an edge.} 9. Be3 {[%emt 0:01:02]} Qf6 {[%emt 0:02:42]} 10. Bxc6 {[%emt 0:17:53]} dxc6 {[%emt 0:00:56]} 11. Nxe5 {[%emt 0:00:54]} Nxe5 {[%emt 0:00:34]} 12. dxe5 {[%emt 0:00:06]} Qxe5 {[%emt 0:00:02]} 13. Bxa7 {[%emt 0:00:22]} Rxa7 {[%emt 0:00:03]} 14. Nd2 {[%emt 0:01:36][%cal Bb1d2,Bd2b3,Bb3d4][%mdl 32]} Rd8 {[%emt 0:02:22]} 15. Qe2 {[%emt 0:15:48]} Ra8 {[%emt 0:01:36]} 16. Nb3 {[%emt 0:06:34]} Be6 {[%emt 0:06:52]} 17. Rad1 {[%emt 0:04:29]} h6 {[%emt 0:04:04]} 18. Nd4 {[%emt 0:12:18]} Bd7 {[%emt 0:01:27]} 19. Rd2 {[%emt 0:07:43]} c5 {[%emt 0:00:51]} 20. Nf3 {[%emt 0:01:26]} Qe7 {[%emt 0:00:45]} 21. Red1 {[%emt 0:00:15]} Be6 {[%emt 0:05:24]} 22. Rxd8+ {[%emt 0:02:35]} Rxd8 {[%emt 0:00:11]} 23. Rxd8+ {[%emt 0:00:03]} Qxd8 $11 {[%emt 0:00:05][%mdl 4096] Endgame. KQB-KQN} 24. a3 {[%emt 0:00:36]} a5 {[%emt 0:00:07]} 25. h3 {[%emt 0:01:34]} b6 {[%emt 0:00:24]} 26. Qd2 {[%emt 0:00:48]} Qe8 {[%emt 0:01:02]} 27. Qf4 {[%emt 0:02:15]} Qb5 {[%emt 0:00:50]} 28. Qd2 {[%emt 0:00:01]} Qe8 {[%emt 0:03:19]} 29. Qf4 {[%emt 0:00:06]} Qc6 {[%emt 0:00:06]} 30. Qe3 {[%emt 0:02:19]} Kf8 {[%emt 0:00:52]} 31. Qd3 {[%emt 0:00:46]} Ke7 {[%emt 0:00:58] Prevents Qd8+} (31... Qd6 {simplifies} 32. Qxd6+ cxd6 33. Nd2 d5) 32. Ne5 {[%emt 0:00:45]} (32. Nh2 {simplifies} Qd6 33. Qxd6+ cxd6 34. f4) 32... Qd6 {[%emt 0:02:43]} 33. f4 {[%emt 0:01:01]} g5 {[%emt 0:00:19]} 34. Qxd6+ {[%emt 0:01:31]} (34. Qe3 $11 {keeps the balance.}) 34... cxd6 $17 {[%emt 0:00:46]} 35. Nd3 {[%emt 0:00:31] [#] Loses the game.} (35. Nc6+ $17 Kd7 36. fxg5 hxg5 (36... Kxc6 $2 {loses.} 37. gxh6 f5 38. h7 $18) 37. Na7) 35... Bc4 $1 $19 {[%emt 0:00:02]} 36. Nf2 {[%emt 0:00:32]} gxf4 {[%emt 0:00:05]} 37. Ng4 {[%emt 0:00:31]} h5 {[%emt 0:01:31]} 38. Nf2 {[%emt 0:00:30]} Ke6 {[%emt 0:00:37] Weighted Error Value: White=0.21 (precise) /Black=0.03 (flawless) .  Mistake:       	White=2     	---        Inaccurate:     	White=4     	---        OK:         	White=10    	Black=9      Strong:       	---       	Black=1} 0-1

[Event "German Bundesliga 2023-24"]
[Site "Germany"]
[Date "2024.02.04"]
[Round "8.10"]
[White "Pavlidis, Antonios"]
[Black "McShane, Luke J"]
[Result "1-0"]
[ECO "C67"]
[WhiteElo "2566"]
[BlackElo "2618"]
[Annotator "RC"]
[PlyCount "117"]
[EventDate "2023.10.20"]
[EventType "team-tourn"]
[EventCountry "GER"]
[SourceTitle "playchess.com"]
[Source "ChessBase"]
[SourceQuality "1"]
[TimeControl "40/6000+30:3000+30"]

1. e4 {[%emt 0:00:02]} e5 {[%emt 0:00:06]} 2. Nf3 {[%emt 0:00:04]} Nc6 {[%emt 0:00:07]} 3. Bb5 {[%emt 0:00:05]} Nf6 {[%emt 0:00:44]} 4. O-O {[%emt 0:00:23]} Nxe4 {[%emt 0:00:05]} 5. Re1 {[%emt 0:00:05]} Nd6 {[%emt 0:00:05]} 6. Nxe5 {[%emt 0:00:14]} Be7 {[%emt 0:00:06]} 7. Bf1 {[%emt 0:00:10]} Nf5 {[%emt 0:00:41]} 8. c3 {[%emt 0:01:07]} Nxe5 {[%emt 0:01:38]} 9. Rxe5 {[%emt 0:00:08]} d6 {[%emt 0:00:14]} 10. Re1 {[%emt 0:00:05]} O-O {[%emt 0:00:13]} 11. d4 {[%emt 0:00:11]} d5 {[%emt 0:00:37]} 12. Nd2 {[%emt 0:02:09]} Bd6 {[%emt 0:12:08]} 13. Nf3 {[%emt 0:00:34]} Nh4 {[%emt 0:12:13]} 14. Ne5 {[%emt 0:17:51]} f6 {[%emt 0:05:38]} 15. Nd3 {[%emt 0:01:45]} c6 {[%emt 0:06:37]} 16. Bf4 {[%emt 0:04:47]} Bf5 {[%emt 0:07:18]} 17. Bxd6 {[%emt 0:13:36]} Qxd6 {[%emt 0:00:08]} 18. g3 {[%emt 0:00:32]} Ng6 {[%emt 0:00:08]} 19. Qh5 {[%emt 0:00:15]} Bc8 {[%emt 0:06:30]} 20. a4 {[%emt 0:14:07]} b6 {[%emt 0:23:23]} 21. a5 {[%emt 0:02:06]} Be6 {[%emt 0:00:41]} 22. Bh3 {[%emt 0:01:31]} Bf7 {[%emt 0:04:50]} 23. Qf5 {[%emt 0:00:14]} Rfd8 {[%emt 0:12:20]} 24. b4 {[%emt 0:07:38]} Nf8 {[%emt 0:01:32]} 25. Qf4 {[%emt 0:01:05]} Qxf4 {[%emt 0:04:04]} 26. Nxf4 {[%emt 0:00:10]} Re8 {[%emt 0:00:07]} 27. Rxe8 {[%emt 0:04:50]} Rxe8 {[%emt 0:00:04]} 28. axb6 {[%emt 0:00:02]} axb6 {[%emt 0:00:05]} 29. Bf1 {[%emt 0:00:54]} Ne6 {[%emt 0:03:33]} 30. Nxe6 {[%emt 0:01:54]} Bxe6 {[%emt 0:00:04]} 31. f3 {[%emt 0:00:32]} Kf8 {[%emt 0:01:34]} 32. Kf2 {[%emt 0:04:13]} b5 {[%emt 0:00:56]} 33. Bd3 {[%emt 0:04:39]} h6 {[%emt 0:00:15]} 34. Ra6 {[%emt 0:01:55]} Bd7 {[%emt 0:00:19]} 35. Bg6 {[%emt 0:00:48]} Rc8 {[%emt 0:05:36]} 36. Ra7 {[%emt 0:05:10]} Ke7 {[%emt 0:01:14]} 37. Ke3 {[%emt 0:00:58]} Rd8 {[%emt 0:01:33]} 38. Kf4 {[%emt 0:00:25]} Kd6 {[%emt 0:00:03]} 39. h4 {[%emt 0:00:14]} Rf8 {[%emt 0:01:41]} 40. g4 {[%emt 0:00:54]} Rg8 {[%emt 0:00:45]} 41. h5 {[%emt 0:50:42]} Rf8 {[%emt 0:08:46]} 42. Rb7 {[%emt 0:00:00]} Rd8 {[%emt 0:10:45]} 43. Bf5 {[%emt 0:00:00]} Ke7 {[%emt 0:00:57]} 44. Rc7 {[%emt 0:00:00]} Kd6 {[%emt 0:00:56]} 45. Ra7 {[%emt 0:00:00]} Ke7 {[%emt 0:00:04]} 46. Bxd7 {[%emt 0:00:00]} Rxd7 {[%emt 0:00:05]} 47. Ra6 {[%emt 0:00:00]} Kd6 {[%emt 0:01:14]} 48. Kf5 {[%emt 0:00:00]} Re7 {[%emt 0:00:07]} 49. f4 {[%emt 0:00:00]} Re3 {[%emt 0:00:30]} 50. Ra7 {[%emt 0:00:00]} Rxc3 {[%emt 0:01:59]} 51. Rxg7 {[%emt 0:00:00]} Rc4 {[%emt 0:03:35]} 52. Rg6 {[%emt 0:00:00]} Kc7 {[%emt 0:04:05]} 53. Rxh6 {[%emt 0:00:00]} Rxb4 {[%emt 0:00:30]} 54. Rxf6 {[%emt 0:00:00]} Rxd4 {[%emt 0:00:02]} 55. h6 {[%emt 0:00:31]} Rd1 {[%emt 0:00:16]} 56. g5 {[%emt 0:03:03]} Rh1 {[%emt 0:00:03]} 57. g6 {[%emt 0:02:22]} Rh5+ {[%emt 0:00:04]} 58. Ke6 {[%emt 0:00:15]} Rxh6 {[%emt 0:00:02]} 59. g7 {[%emt 0:00:15]} 1-0

[Event "German Bundesliga 2023-24"]
[Site "Germany"]
[Date "2024.02.04"]
[Round "8.11"]
[White "Maghsoodloo, Parham"]
[Black "Santos Ruiz, Miguel"]
[Result "1/2-1/2"]
[ECO "A29"]
[WhiteElo "2707"]
[BlackElo "2593"]
[Annotator "TA"]
[PlyCount "93"]
[EventDate "2023.10.20"]
[EventType "team-tourn"]
[EventCountry "GER"]
[SourceTitle "playchess.com"]
[Source "ChessBase"]
[SourceQuality "1"]
[TimeControl "40/6000+30:3000+30"]

{[%evp 14,93,0,2,2,0,0,0,27,20,27,27,85,69,83,85,83,84,78,32,32,5,32,26,38,50,93,82,92,83,88,97,91,100,103,93,85,81,104,87,116,120,118,122,112,108,102,109,117,119,120,121,110,106,106,85,129,129,141,140,139,141,136,126,140,154,162,157,162,162,162,140,140,140,140,140,140,131,140,140,140,81]} 1. c4 {[%emt 0:00:03]} e5 {[%emt 0:00:16]} 2. g3 {[%emt 0:00:14]} Nf6 {[%emt 0:01:51]} 3. Bg2 {[%emt 0:00:37]} d5 {[%emt 0:03:24]} 4. cxd5 {[%emt 0:00:12]} Nxd5 {[%emt 0:00:04]} 5. Nf3 {[%emt 0:03:01]} Nc6 {[%emt 0:00:25]} 6. O-O {[%emt 0:01:54]} Nb6 {[%emt 0:08:07]} 7. Nc3 {[%emt 0:11:35]} Be7 {[%emt 0:00:41]} 8. b3 {[%emt 0:00:07]} Bf5 {[%emt 0:04:49]} 9. Bb2 {[%emt 0:15:02][%cal Od2d4]} O-O {[%emt 0:17:47]} 10. d3 {[%emt 0:00:08]} Qc8 {[%emt 0:09:35] The position is equal.} 11. a4 {[%emt 0:08:11]} a5 {[%emt 0:21:44]} 12. Nb5 {[%emt 0:07:25]} f6 {[%emt 0:00:29]} (12... Bf6 $1 $11 {keeps the balance.}) 13. d4 $1 $16 {[%emt 0:06:30][%cal Rd4e5]} Rd8 {[%emt 0:06:38]} 14. Qc1 {[%emt 0:02:47]} exd4 {[%emt 0:02:56]} 15. Nfxd4 {[%emt 0:03:39]} Nxd4 {[%emt 0:00:05]} 16. Nxd4 {[%emt 0:02:20]} ({Better is} 16. Bxd4 $16 {[%cal Oc1e3] Threatens to win with Qe3!} c5 17. Bc3) 16... Bg6 $14 {[%emt 0:03:20]} 17. Rd1 {[%emt 0:22:12]} Nd5 {[%emt 0:07:44]} 18. h4 {[%emt 0:04:00]} Nb4 {[%emt 0:06:13]} 19. Kh2 {[%emt 0:02:29]} c5 {[%emt 0:04:37] [#]} 20. Bh3 $1 {[%emt 0:01:15]} Qc7 {[%emt 0:00:09] [#]} 21. Qc4+ $1 {[%emt 0:01:45]} Bf7 {[%emt 0:00:04]} 22. Ne6 {[%emt 0:06:19]} Qb6 {[%emt 0:03:14]} 23. Qg4 {[%emt 0:04:42][%csl Ge6][%cal Rg4g7] White is more active.} Qxe6 {[%emt 0:00:07]} 24. Qxe6 {[%emt 0:00:05]} Bxe6 {[%emt 0:00:02]} 25. Bxe6+ {[%emt 0:00:05][%cal Bh3e6,Be6c4,Bc4d3][%mdl 32]} Kf8 {[%emt 0:00:02]} 26. h5 {[%emt 0:02:46]} Nc2 {[%emt 0:02:45]} 27. Rac1 {[%emt 0:00:46] Hoping for Rxd8+.} Nd4 {[%emt 0:00:04]} 28. Bc4 {[%emt 0:01:30]} Rd6 {[%emt 0:01:31]} 29. Kg2 {[%emt 0:01:23]} Rad8 {[%emt 0:01:18][%cal Od4e2]} 30. Bc3 {[%emt 0:01:03] This pair of bishops is nice.} Nc6 {[%emt 0:00:30]} 31. Rxd6 {[%emt 0:00:30]} Rxd6 {[%emt 0:00:30]} 32. Bd3 {[%emt 0:00:30]} h6 {[%emt 0:00:30]} 33. f4 {[%emt 0:00:30]} Nb4 {[%emt 0:00:30]} 34. Bb1 {[%emt 0:00:30]} ({But not} 34. Bxb4 axb4 35. Kf3 (35. Rxc5 $2 {is the wrong capture.} Rxd3 36. Rc8+ Rd8 $19) 35... Rd4 $18) 34... b6 {[%emt 0:00:30]} 35. Kf3 {[%emt 0:00:30]} Nc6 {[%emt 0:00:30]} 36. e3 {[%emt 0:00:30]} Nb4 {[%emt 0:00:30]} 37. g4 {[%emt 0:00:30]} Nd3 {[%emt 0:00:30]} 38. Rf1 {[%emt 0:00:30]} Nb4 {[%emt 0:00:30]} 39. Ke2 {[%emt 0:00:30] White is clearly better.} Kg8 {[%emt 0:00:30]} 40. Bg6 {[%emt 0:00:30]} Rd8 {[%emt 0:00:30]} 41. Bf5 {[%emt 0:50:30]} Kf7 {[%emt 0:50:30]} 42. Bd2 {[%emt 0:00:30]} Rd6 {[%emt 0:00:30]} 43. Rc1 {[%emt 0:00:30]} Rd8 {[%emt 0:00:30]} 44. Rc4 {[%emt 0:00:30]} Rd6 {[%emt 0:00:30]} 45. Re4 {[%emt 0:00:30]} Ke8 {[%emt 0:00:30]} 46. Re6 {[%emt 0:00:30]} c4 {[%emt 0:00:30]} 47. bxc4 {[%emt 0:00:30] Weighted Error Value: White=0.04 (flawless) /Black=0.08 (flawless) .  Mistake:       	White=2     	Black=1      Inaccurate:     	---       	Black=5      OK:         	White=17    	Black=13     Best:        	White=2     	Black=1      Strong:       	White=3     	---} (47. Bg6+ $142 Kf8 48. Rxd6 Bxd6 49. bxc4) 1/2-1/2

[Event "German Bundesliga 2023-24"]
[Site "Germany"]
[Date "2024.02.04"]
[Round "8.11"]
[White "Fridman, Daniel"]
[Black "Yuffa, Daniil"]
[Result "0-1"]
[ECO "A46"]
[WhiteElo "2588"]
[BlackElo "2601"]
[Annotator "RC"]
[PlyCount "106"]
[EventDate "2023.10.20"]
[EventType "team-tourn"]
[EventCountry "GER"]
[SourceTitle "playchess.com"]
[Source "ChessBase"]
[SourceQuality "1"]
[TimeControl "40/6000+30:3000+30"]

1. d4 {[%emt 0:03:31]} Nf6 {[%emt 0:00:24]} 2. Nf3 {[%emt 0:00:07]} e6 {[%emt 0:00:08]} 3. g3 {[%emt 0:00:04]} b5 {[%emt 0:00:11]} 4. Bg2 {[%emt 0:00:04]} Bb7 {[%emt 0:00:07]} 5. O-O {[%emt 0:00:05]} c5 {[%emt 0:00:42]} 6. Bg5 {[%emt 0:01:04]} cxd4 {[%emt 0:04:27]} 7. Bxf6 {[%emt 0:00:12]} Qxf6 {[%emt 0:04:32]} 8. Nxd4 {[%emt 0:00:11]} Bxg2 {[%emt 0:03:27]} 9. Kxg2 {[%emt 0:00:11]} a6 {[%emt 0:01:13]} 10. c3 {[%emt 0:00:14]} Bc5 {[%emt 0:13:01]} 11. Qd3 {[%emt 0:00:27]} Bxd4 {[%emt 0:04:38]} 12. cxd4 {[%emt 0:03:31]} Nc6 {[%emt 0:02:59]} 13. e3 {[%emt 0:00:46]} Qg6 {[%emt 0:01:38]} 14. Rd1 {[%emt 0:11:13]} Qxd3 {[%emt 0:02:43]} 15. Rxd3 {[%emt 0:00:06]} Ke7 {[%emt 0:00:06]} 16. Nd2 {[%emt 0:05:00]} Rhc8 {[%emt 0:02:34]} 17. Rc3 {[%emt 0:00:40]} Nb4 {[%emt 0:02:35]} 18. a4 {[%emt 0:46:12]} Nd5 {[%emt 0:07:52]} 19. Rc5 {[%emt 0:00:07]} Rxc5 {[%emt 0:02:21]} 20. dxc5 {[%emt 0:00:07]} Rb8 {[%emt 0:03:56]} 21. Ne4 {[%emt 0:06:27]} bxa4 {[%emt 0:06:40]} 22. Nc3 {[%emt 0:00:52]} Nxc3 {[%emt 0:03:05]} 23. bxc3 {[%emt 0:00:06]} a5 {[%emt 0:07:21]} 24. Rxa4 {[%emt 0:02:09]} Ra8 {[%emt 0:02:17]} 25. Kf3 {[%emt 0:01:35]} Kd8 {[%emt 0:01:59]} 26. Ke4 {[%emt 0:00:10]} Kc7 {[%emt 0:00:14]} 27. Kd4 {[%emt 0:00:06]} Kc6 {[%emt 0:01:06]} 28. Kc4 {[%emt 0:00:07]} f5 {[%emt 0:02:06]} 29. h4 {[%emt 0:10:42]} h5 {[%emt 0:04:46]} 30. f3 {[%emt 0:03:37]} g6 {[%emt 0:03:57]} 31. Ra3 {[%emt 0:07:52]} a4 {[%emt 0:07:58]} 32. Kb4 {[%emt 0:01:52]} Rb8+ {[%emt 0:00:26]} 33. Kc4 {[%emt 0:00:07]} Rb1 {[%emt 0:02:20]} 34. Rxa4 {[%emt 0:00:10]} Rg1 {[%emt 0:00:30]} 35. f4 {[%emt 0:07:02]} Rxg3 {[%emt 0:00:26]} 36. Ra8 {[%emt 0:00:56]} Rxe3 {[%emt 0:00:54]} 37. Rc8+ {[%emt 0:00:05]} Kb7 {[%emt 0:00:08]} 38. Rg8 {[%emt 0:00:03]} Kc7 {[%emt 0:01:33]} 39. Rxg6 {[%emt 0:00:45]} Kc6 {[%emt 0:00:52]} 40. Rg5 {[%emt 0:00:23]} Re4+ {[%emt 0:00:10]} 41. Kd3 {[%emt 0:50:37]} Rxf4 {[%emt 0:50:39]} 42. Rxh5 {[%emt 0:00:05]} Kxc5 {[%emt 0:00:23]} 43. Rh8 {[%emt 0:00:37]} Kd5 {[%emt 0:03:45]} 44. h5 {[%emt 0:00:53]} Rf3+ {[%emt 0:01:46]} 45. Kd2 {[%emt 0:00:00]} Ke4 {[%emt 0:00:00]} 46. Rh7 {[%emt 0:00:00]} Rf2+ {[%emt 0:00:00]} 47. Ke1 {[%emt 0:00:00]} Rh2 {[%emt 0:00:00]} 48. Rxd7 {[%emt 0:00:00]} Rxh5 {[%emt 0:00:00]} 49. c4 {[%emt 0:00:00]} f4 {[%emt 0:00:00]} 50. Rd6 {[%emt 0:00:00]} e5 {[%emt 0:00:00]} 51. c5 {[%emt 0:00:00]} Ke3 {[%emt 0:00:00]} 52. Kd1 {[%emt 0:00:00]} f3 {[%emt 0:00:00]} 53. c6 {[%emt 0:00:00]} f2 {[%emt 0:00:00]} 0-1

[Event "German Bundesliga 2023-24"]
[Site "Germany"]
[Date "2024.02.04"]
[Round "8.11"]
[White "Efimenko, Zahar"]
[Black "Plat, Vojtech"]
[Result "1-0"]
[ECO "D76"]
[WhiteElo "2575"]
[BlackElo "2503"]
[Annotator "ChessBase"]
[PlyCount "91"]
[EventDate "2023.10.20"]
[EventType "team-tourn"]
[EventCountry "GER"]
[SourceTitle "playchess.com"]
[Source "ChessBase"]
[SourceQuality "1"]
[TimeControl "40/6000+30:3000+30"]

1. d4 {[%emt 0:00:37]} Nf6 {[%emt 0:01:04]} 2. Nf3 {[%emt 0:00:30]} g6 {[%emt 0:00:09]} 3. c4 {[%emt 0:03:12]} Bg7 {[%emt 0:00:06]} 4. g3 {[%emt 0:00:12]} O-O {[%emt 0:00:20]} 5. Bg2 {[%emt 0:00:11]} d5 {[%emt 0:00:06]} 6. cxd5 {[%emt 0:06:01]} Nxd5 {[%emt 0:00:23]} 7. O-O {[%emt 0:00:06]} Nb6 {[%emt 0:00:22]} 8. Nc3 {[%emt 0:01:39]} Nc6 {[%emt 0:06:17]} 9. d5 {[%emt 0:00:13]} Na5 {[%emt 0:00:06]} 10. Qc2 {[%emt 0:00:48]} Nac4 {[%emt 0:07:47]} 11. Rd1 {[%emt 0:06:51]} Bd7 {[%emt 0:10:38]} 12. e4 {[%emt 0:07:59]} f5 {[%emt 0:07:23]} 13. Nd4 {[%emt 0:02:57]} Nd6 {[%emt 0:06:44]} 14. Bf4 {[%emt 0:15:12]} Nbc4 {[%emt 0:01:12]} 15. b3 {[%emt 0:08:03]} Ne5 {[%emt 0:02:20]} 16. Rac1 {[%emt 0:01:18]} Qe8 {[%emt 0:06:51]} 17. Qe2 {[%emt 0:03:46]} c5 {[%emt 0:02:44]} 18. dxc6 {[%emt 0:07:00]} Nxc6 {[%emt 0:02:41]} 19. Nxc6 {[%emt 0:07:17]} Bxc6 {[%emt 0:00:27]} 20. e5 {[%emt 0:00:09]} Nf7 {[%emt 0:01:13]} 21. Nd5 {[%emt 0:04:30]} Bxd5 {[%emt 0:07:42]} 22. Bxd5 {[%emt 0:00:36]} e6 {[%emt 0:00:03]} 23. Bxb7 {[%emt 0:00:39]} Rd8 {[%emt 0:00:02]} 24. Rxd8 {[%emt 0:05:53]} Qxd8 {[%emt 0:02:39]} 25. Rc8 {[%emt 0:01:47]} Qd4 {[%emt 0:02:24]} 26. Rxf8+ {[%emt 0:05:52]} Bxf8 {[%emt 0:01:21]} 27. Ba6 {[%emt 0:00:26]} g5 {[%emt 0:06:25]} 28. Be3 {[%emt 0:00:45]} Qa1+ {[%emt 0:00:03]} 29. Kg2 {[%emt 0:02:03]} Qxe5 {[%emt 0:00:03]} 30. Bc4 {[%emt 0:01:21]} a5 {[%emt 0:04:55]} 31. Bb6 {[%emt 0:02:59]} Qxe2 {[%emt 0:00:04]} 32. Bxe2 {[%emt 0:00:04]} Bb4 {[%emt 0:00:03]} 33. Bc4 {[%emt 0:01:04]} e5 {[%emt 0:00:15]} 34. Be6 {[%emt 0:01:05]} f4 {[%emt 0:00:06]} 35. Kf3 {[%emt 0:01:49]} Kg7 {[%emt 0:00:03]} 36. Ke4 {[%emt 0:02:49]} h5 {[%emt 0:00:31]} 37. Bxf7 {[%emt 0:04:34]} Kxf7 {[%emt 0:00:03]} 38. Kxe5 {[%emt 0:00:13]} fxg3 {[%emt 0:00:05]} 39. fxg3 {[%emt 0:00:00]} Kg6 {[%emt 0:00:06]} 40. h3 {[%emt 0:02:23]} g4 {[%emt 0:00:53]} 41. hxg4 {[%emt 0:50:22]} hxg4 {[%emt 0:50:02]} 42. Kf4 {[%emt 0:00:17]} Kh5 {[%emt 0:00:01]} 43. Bc7 {[%emt 0:00:14]} Bd2+ {[%emt 0:01:27]} 44. Kf5 {[%emt 0:00:50]} Bb4 {[%emt 0:00:09]} 45. a3 {[%emt 0:03:34]} Be1 {[%emt 0:00:33]} 46. Bd6 {[%emt 0:00:42]} 1-0